bitfinex-derivatives/quotes_BNBF0:USTF0_20250309
["timestamp","ask_amount","ask_price","bid_price","bid_amount"]
[1741557068486,1.39492682,557.14,556.81,0.35121682]
[1741557068884,1.39492682,557.13,556.81,0.35121682]
[1741557069285,1.39492682,557.12,556.81,0.35121682]
[1741557069883,1.39492682,557.11,556.81,0.35121682]
[1741557070889,0.31247475,557.16,556.81,0.35121682]
[1741557071289,1.3924682,557.15,556.81,0.35121682]
[1741557071688,1.3924682,557.14,556.34,1.34517987]
[1741557071888,1.70495417,557.14,556.35,0.65677153]
[1741557072085,1.70495417,557.14,556.36,0.65676507]
[1741557072290,1.3924682,557.13,556.37,0.2972856]
[1741557072887,1.3924682,557.12,556.37,0.2972856]
[1741557073393,1.3924682,557.11,556.37,0.2972856]
[1741557073994,0.31248597,557.14,556.37,0.2972856]
[1741557074190,0.31248597,557.14,556.38,0.35946655]
[1741557074394,0.31248597,557.14,556.39,0.2972856]
[1741557074591,1.39005176,557.13,556.4,0.35945363]
[1741557074792,1.39005176,557.13,556.41,0.29729482]
[1741557074992,1.70251248,557.13,556.41,0.29729482]
[1741557075187,0.31246072,557.13,556.41,0.29729482]
[1741557075391,0.31246072,557.13,556.42,0.35944071]
[1741557075596,0.31246072,557.13,556.43,0.29729482]
[1741557075896,0.31246072,557.13,556.44,0.35942779]
[1741557076096,0.31246072,557.13,556.45,0.29729482]
[1741557076297,0.31246072,557.13,556.46,0.35941487]
[1741557076496,0.297,557.12,556.46,0.35941487]
[1741557076796,0.297,557.12,556.47,0.29729483]
[1741557076998,0.297,557.12,556.47,0.65670324]
[1741557077196,0.297,557.12,556.48,0.29729483]
[1741557077396,4.26202611,557.11,556.48,0.29729483]
[1741557077695,7.46903065,557.1,556.47,0.35940841]
[1741557077895,7.46924188,557.09,556.47,0.35940841]
[1741557078096,7.46924188,557.08,556.47,0.35940841]
[1741557078396,4.59543238,557.07,556.47,0.35940841]
[1741557078595,2.87287646,557.06,556.47,0.35940841]
[1741557078790,4.26219817,557.05,556.47,0.35940841]
[1741557079001,2.87287646,557.04,556.47,0.35940841]
[1741557079199,2.87287646,557.03,556.47,0.35940841]
[1741557079398,2.87287646,557.02,556.47,0.35940841]
[1741557079597,2.87287646,557.01,556.47,0.35940841]
[1741557079798,2.87287646,557.0,556.47,0.35940841]
[1741557079998,3.61035872,557.03,556.47,0.35940841]
[1741557080198,0.297,557.12,556.47,0.35940841]
[1741557080199,4.26049969,557.02,556.47,0.35940841]
[1741557080392,1.07579844,557.01,556.47,0.35940841]
[1741557081100,1.70193259,557.0,556.47,0.35940841]
[1741557081796,1.38932171,556.99,556.47,0.35940841]
[1741557082199,1.38932171,556.98,556.47,0.35940841]
[1741557082398,2.86947451,556.97,556.47,0.35940841]
[1741557082600,4.25879622,556.96,556.47,0.35940841]
[1741557082792,1.38932171,556.96,556.47,0.35940841]
[1741557082994,1.38932171,556.95,556.47,0.35940841]
[1741557083600,1.38932171,556.94,556.47,0.35940841]
[1741557083901,1.70196911,556.94,556.47,0.35940841]
[1741557084200,1.38932171,556.93,556.47,0.35940841]
[1741557084797,1.38932171,556.92,556.47,0.35940841]
[1741557085498,1.38932171,556.91,556.47,0.35940841]
[1741557085901,1.38932171,556.9,556.47,0.35940841]
[1741557086600,1.38932171,556.89,556.47,0.35940841]
[1741557086992,1.70201405,556.89,556.47,0.35940841]
[1741557087397,4.25673109,556.88,555.6,1.34517987]
[1741557087593,4.25673109,556.88,555.25,2.7464089]
[1741557087594,2.86740938,556.87,555.62,0.35995824]
[1741557087796,6.46949349,556.86,555.63,0.2975457]
[1741557088099,6.46949349,556.85,555.63,0.2975457]
[1741557088301,4.58058997,556.84,555.63,0.2975457]
[1741557088600,2.86727676,556.83,555.63,0.2975457]
[1741557088802,4.58051217,556.82,555.63,0.2975457]
[1741557088996,7.45442079,556.81,555.63,0.2975457]
[1741557089199,7.99333536,556.8,555.64,0.2975457]
[1741557089395,7.99336701,556.79,555.63,0.2975457]
[1741557089701,7.4502076,556.78,555.64,0.2975457]
[1741557090002,7.98917629,556.77,555.65,0.2975457]
[1741557090203,7.4502076,556.76,555.63,0.2975457]
[1741557090402,7.4502076,556.75,555.64,0.2975457]
[1741557090600,7.4502076,556.74,555.63,0.2975457]
[1741557090802,7.4502076,556.73,555.63,0.2975457]
[1741557091104,7.4502076,556.72,555.63,0.2975457]
[1741557091401,7.4502076,556.71,555.63,0.2975457]
[1741557091602,11.05313501,556.7,555.63,0.2975457]
[1741557091802,4.57629898,556.69,555.63,0.2975457]
[1741557092002,7.45101567,556.68,555.63,0.2975457]
[1741557092298,4.57629898,556.67,555.63,0.2975457]
[1741557092503,4.57178927,556.66,555.65,0.35993881]
[1741557092799,6.46742067,556.65,555.66,0.2975457]
[1741557093003,4.57235872,556.64,555.66,0.2975457]
[1741557093203,2.86520394,556.63,555.66,0.2975457]
[1741557093402,2.86204513,556.62,555.67,0.35992585]
[1741557093699,2.86204513,556.61,555.68,0.2975457]
[1741557093904,1.06627559,556.6,555.69,0.3599129]
[1741557094098,1.06627559,556.59,555.7,0.2975457]
[1741557094298,1.06627559,556.58,555.71,0.35989994]
[1741557094498,4.66849232,556.57,555.72,0.2975457]
[1741557094697,1.06627559,556.56,555.72,0.2975457]
[1741557094902,2.86313959,556.56,555.72,0.2975457]
[1741557095105,2.4555973,556.55,555.72,0.2975457]
[1741557095405,3.2275973,556.55,555.73,0.35988699]
[1741557095699,4.66849232,556.54,555.74,0.2975457]
[1741557095906,3.91508478,556.54,555.75,0.35987404]
[1741557096099,1.38932171,556.53,555.76,0.2975457]
[1741557096605,1.38932171,556.52,555.76,0.2975457]
[1741557096805,1.38932171,556.52,555.77,0.35986109]
[1741557097004,1.38932171,556.52,555.78,0.2975457]
[1741557097205,1.38932171,556.51,555.78,0.2975457]
[1741557097802,3.60221673,556.5,555.78,0.2975457]
[1741557098205,1.38932171,556.49,555.78,0.2975457]
[1741557098909,1.38932171,556.48,555.78,0.2975457]
[1741557099307,1.38932171,556.47,555.78,0.2975457]
[1741557099708,1.38932171,556.46,555.78,0.2975457]
[1741557100009,1.70219398,556.46,555.78,0.2975457]
[1741557100203,1.38932171,556.45,555.77,0.35986109]
[1741557100406,1.38932171,556.45,555.78,0.29772749]
[1741557100804,1.38932171,556.44,555.78,0.29772749]
[1741557101106,0.31287227,556.46,555.78,0.29772749]
[1741557101512,1.36848268,556.45,555.78,0.29772749]
[1741557101915,1.36848268,556.44,555.78,0.29772749]
[1741557102711,1.36848268,556.43,555.78,0.29772749]
[1741557103717,1.36848268,556.42,555.78,0.29772749]
[1741557104315,1.36848268,556.41,555.78,0.29772749]
[1741557104817,1.36848268,556.4,555.78,0.29772749]
[1741557105418,1.36848268,556.39,555.78,0.29772749]
[1741557105614,1.36848268,556.39,555.77,0.35986109]
[1741557105921,1.68139011,556.39,555.78,0.29778104]
[1741557106116,1.36848268,556.38,555.78,0.29778104]
[1741557106615,1.36848268,556.37,555.78,0.29778104]
[1741557106819,2.42915604,556.37,555.78,0.29778104]
[1741557107015,1.36848268,556.37,555.78,0.29778104]
[1741557107319,3.556749,556.36,555.78,0.29778104]
[1741557107922,6.72735288,556.35,555.78,0.29778104]
[1741557108122,2.85766972,556.34,555.78,0.29778104]
[1741557108315,1.06010417,556.33,555.78,0.29778104]
[1741557108615,1.06010417,556.33,555.77,0.35986109]
[1741557108616,1.05959169,556.32,555.77,0.35986109]
[1741557108816,1.05959169,556.31,554.74,1.34517987]
[1741557109117,2.85701144,556.3,554.76,0.36051625]
[1741557109323,1.69510184,556.32,554.76,0.36051625]
[1741557109324,10.98159126,556.29,554.76,0.36051625]
[1741557109523,1.04253473,556.26,554.77,0.29787824]
[1741557109724,1.04253473,556.2,554.77,0.29787824]
[1741557110023,1.04253473,556.13,554.77,0.29787824]
[1741557110217,7.42484226,556.12,554.77,0.29787824]
[1741557110417,1.04253473,556.08,554.77,0.29787824]
[1741557110617,7.42484226,556.07,554.77,0.29787824]
[1741557110821,1.04253473,556.05,554.77,0.29787824]
[1741557111023,1.04253473,556.01,554.77,0.29787824]
[1741557111223,4.54548226,556.0,554.77,0.29787824]
[1741557111424,1.04253473,555.97,554.77,0.29787824]
[1741557111720,1.04253473,555.92,554.77,0.29787824]
[1741557111918,1.04253473,555.83,554.77,0.29787824]
[1741557112123,1.04253473,555.81,554.77,0.29787824]
[1741557112324,2.85152437,555.8,554.77,0.29787824]
[1741557112522,5.71861665,555.79,554.77,0.29787824]
[1741557112723,7.93315191,555.78,554.77,0.29787824]
[1741557112918,3.556749,555.82,554.76,0.36051625]
[1741557112919,11.48990091,555.77,554.78,0.29835916]
[1741557113124,7.93315191,555.76,554.77,0.29835916]
[1741557113327,7.39374761,555.75,554.76,0.36051625]
[1741557113523,7.39374761,555.74,554.76,0.36051625]
[1741557113723,7.39374761,555.73,554.76,0.36051625]
[1741557113928,7.93392863,555.72,554.76,0.36051625]
[1741557114120,2.84428324,555.71,554.76,0.36051625]
[1741557114325,1.05959169,555.7,554.76,0.36051625]
[1741557114522,1.78469155,555.71,554.76,0.36051625]
[1741557114727,4.60570196,555.7,554.76,0.36051625]
[1741557114927,1.36257525,555.69,554.76,0.36051625]
[1741557115324,0.31362229,555.69,554.76,0.36051625]
[1741557115530,0.31362229,555.69,554.77,0.2983853]
[1741557115827,0.31362229,555.69,554.78,0.29838674]
[1741557116021,0.31362229,555.69,554.76,0.36051625]
[1741557116022,0.31362229,555.69,554.77,0.29838674]
[1741557116225,0.31362229,555.69,554.76,0.36051625]
[1741557118623,0.31362229,555.69,554.77,0.29837699]
[1741557119726,0.298,555.69,554.77,0.29837699]
[1741557119926,0.31333285,555.68,554.77,0.29837699]
[1741557122728,0.298,555.69,554.77,0.29837699]
[1741557122926,0.31333426,555.67,554.77,0.29837699]
[1741557123328,0.31333426,555.67,554.76,0.36051625]
[1741557123529,0.31333426,555.67,554.77,0.29826895]
[1741557124628,0.766,555.66,554.77,0.29826895]
[1741557125229,0.766,555.66,554.76,0.36051625]
[1741557125424,0.766,555.66,554.77,0.29828513]
[1741557126030,0.31339917,555.65,554.77,0.29828513]
[1741557127024,0.31339917,555.65,554.78,0.36050326]
[1741557127230,0.31339917,555.65,554.79,0.29829721]
[1741557127827,0.31339917,555.65,554.8,0.36049026]
[1741557128024,0.31339917,555.65,554.81,0.29829721]
[1741557128633,0.31339917,555.65,554.8,0.36049026]
[1741557134733,0.766,555.66,554.8,0.36049026]
[1741557134933,0.31356719,555.64,554.8,0.36049026]
[1741557137631,0.766,555.66,554.8,0.36049026]
[1741557137833,0.31356719,555.63,554.8,0.36049026]
[1741557138630,0.31356719,555.63,554.81,0.29833554]
[1741557139037,0.31356719,555.63,554.8,0.36049026]
[1741557139938,0.31356719,555.63,554.81,0.29833546]
[1741557140642,0.298,555.65,554.81,0.29833546]
[1741557141038,0.31341892,555.62,554.81,0.29833546]
[1741557141735,0.31341892,555.62,554.82,0.29831741]
[1741557141939,0.31341892,555.62,554.81,0.29831741]
[1741557142140,0.31341892,555.62,554.82,0.29831741]
[1741557142341,0.31341892,555.62,554.81,0.29831741]
[1741557142541,0.31341892,555.62,554.82,0.29831741]
[1741557142741,0.31341892,555.62,554.8,0.36049026]
[1741557142742,0.31341892,555.62,554.81,0.29831741]
[1741557142938,0.31341892,555.62,554.82,0.29831741]
[1741557143139,0.31341892,555.62,554.81,0.29831741]
[1741557143344,0.31341892,555.62,554.8,0.36049026]
[1741557143345,0.31341892,555.62,554.82,0.29831741]
[1741557143639,0.298,555.65,554.81,0.29831741]
[1741557143844,0.298,555.65,554.82,0.29831741]
[1741557144039,0.31339352,555.61,554.83,0.29831741]
[1741557144343,0.31339352,555.61,554.8,0.36049026]
[1741557144344,0.31339352,555.61,554.84,0.29831741]
[1741557144540,0.31339352,555.61,554.81,0.29831741]
[1741557144745,0.31339352,555.61,554.82,0.29831741]
[1741557144938,0.31339352,555.61,554.81,0.29831741]
[1741557145138,0.31339352,555.61,554.8,0.36049026]
[1741557145139,0.31339352,555.61,554.82,0.29831741]
[1741557145341,0.31339352,555.61,554.81,0.65880117]
[1741557145540,0.31339352,555.61,554.82,0.29831741]
[1741557146747,1.36848268,555.63,554.82,0.29831741]
[1741557146945,0.31339493,555.6,554.82,0.29831741]
[1741557147343,1.36848268,555.59,554.83,0.36047077]
[1741557147640,1.36848268,555.59,554.84,0.29831741]
[1741557147944,0.31339493,555.6,554.85,0.36045778]
[1741557148140,0.31339493,555.6,554.86,0.29831741]
[1741557148340,0.31339493,555.6,554.86,0.65876869]
[1741557148538,0.31339493,555.6,554.87,0.29831741]
[1741557148944,1.36848268,555.59,554.86,0.36045128]
[1741557149241,1.36848268,555.59,554.87,0.29828371]
[1741557149442,1.36848268,555.58,554.87,0.29828371]
[1741557149843,1.36848268,555.58,554.88,0.36043829]
[1741557150143,0.31337377,555.57,554.89,0.29828371]
[1741557150446,0.31337377,555.57,554.89,0.6587155]
[1741557150642,1.36071279,555.56,554.89,0.36043179]
[1741557150947,1.36071279,555.56,554.9,0.2982799]
[1741557151146,0.31337377,555.57,554.9,0.2982799]
[1741557151743,1.03937377,555.57,554.9,0.2982799]
[1741557152049,1.36157374,555.56,554.9,0.2982799]
[1741557152549,1.36157374,555.56,554.89,0.36043179]
[1741557152847,1.67494609,555.55,554.9,0.2982844]
[1741557153849,1.36157374,555.54,554.9,0.2982844]
[1741557154447,1.36157374,555.53,554.89,0.36043179]
[1741557154645,1.36157374,555.53,554.9,0.29828061]
[1741557155042,1.36157374,555.52,554.9,0.29828061]
[1741557155546,1.36157374,555.51,554.9,0.29828061]
[1741557155948,1.67495174,555.51,554.9,0.29828061]
[1741557156742,0.313378,555.51,554.9,0.29828061]
[1741557157949,1.36712228,555.5,554.9,0.29828061]
[1741557158649,0.726,555.57,554.9,0.29828061]
[1741557159051,0.31338082,555.49,554.9,0.29828061]
[1741557159352,1.36821656,555.56,554.9,0.29828061]
[1741557159752,1.36821656,555.55,554.9,0.29828061]
[1741557160047,0.31335119,555.55,554.9,0.29828061]
[1741557160247,0.298,555.54,554.9,0.29828061]
[1741557161847,0.298,555.54,554.91,0.29828061]
[1741557162054,0.298,555.54,554.92,0.29828061]
[1741557162351,0.298,555.54,554.9,0.29828061]
[1741557162554,0.298,555.54,554.91,0.29828061]
[1741557162750,0.298,555.54,554.9,0.29828061]
[1741557162952,0.298,555.54,554.91,0.29828061]
[1741557163155,0.298,555.54,554.89,0.36043179]
[1741557163156,0.298,555.54,554.9,0.29828061]
[1741557163354,0.298,555.54,554.91,0.29828061]
[1741557163654,0.298,555.54,554.92,0.29828061]
[1741557163853,0.298,555.54,554.9,0.29828061]
[1741557164051,0.298,555.54,554.91,0.29828061]
[1741557164255,0.298,555.54,554.9,0.29828061]
[1741557165756,0.298,555.54,554.91,0.3604188]
[1741557166056,0.298,555.54,554.92,0.29828061]
[1741557166255,0.298,555.54,554.93,0.36040581]
[1741557166453,0.298,555.54,554.94,0.29828061]
[1741557166656,0.298,555.54,554.95,0.36039282]
[1741557166857,0.298,555.54,554.96,0.29828061]
[1741557167058,0.298,555.54,554.97,0.36037984]
[1741557167263,0.298,555.54,554.98,0.29828061]
[1741557167656,0.298,555.54,554.99,0.36036685]
[1741557167859,0.298,555.54,555.0,0.29828061]
[1741557168054,0.298,555.54,555.01,0.36035386]
[1741557168258,0.298,555.54,555.02,0.29828061]
[1741557168459,0.298,555.54,555.03,0.36034088]
[1741557168660,0.298,555.54,555.04,0.29828061]
[1741557168955,0.298,555.54,555.05,0.36032789]
[1741557169156,0.298,555.54,555.06,0.29828061]
[1741557169360,0.298,555.54,555.07,0.36031491]
[1741557169560,0.298,555.54,555.08,0.29828061]
[1741557169759,0.298,555.54,555.09,0.36030193]
[1741557169956,0.298,555.54,555.1,0.29828061]
[1741557170155,0.298,555.54,555.11,0.36028895]
[1741557170360,0.298,555.54,555.12,0.29828061]
[1741557170560,0.298,555.54,555.13,0.36027597]
[1741557170760,0.298,555.54,555.14,0.29828061]
[1741557170963,0.862,555.53,555.15,0.36026299]
[1741557171160,0.862,555.53,555.16,0.29828061]
[1741557171356,0.862,555.53,555.17,0.36025001]
[1741557171562,0.862,555.53,555.18,0.29828061]
[1741557171862,0.862,555.53,555.19,0.36023703]
[1741557172058,0.862,555.53,555.2,0.29828061]
[1741557172260,0.862,555.53,555.21,0.36022405]
[1741557172459,0.862,555.53,555.22,0.29828061]
[1741557172658,0.862,555.53,555.23,0.36021108]
[1741557172858,0.862,555.53,555.24,0.29828061]
[1741557173060,0.862,555.53,555.25,0.3601981]
[1741557173258,0.862,555.53,555.26,0.29828061]
[1741557173465,0.862,555.53,555.27,0.36018513]
[1741557173658,0.862,555.53,555.28,0.29828061]
[1741557173859,0.862,555.53,555.29,0.36017216]
[1741557174058,0.862,555.53,555.3,0.29828061]
[1741557174260,0.862,555.53,555.31,0.36015919]
[1741557174459,0.862,555.53,555.32,0.29828061]
[1741557174663,0.862,555.53,555.33,0.36014621]
[1741557174862,0.862,555.53,555.34,0.29828061]
[1741557175157,0.862,555.53,555.35,0.36013324]
[1741557175563,0.862,555.53,555.36,0.29828061]
[1741557175762,0.862,555.53,555.37,0.36012028]
[1741557175962,0.862,555.53,555.38,0.29828061]
[1741557176165,0.862,555.53,555.38,0.6583944]
[1741557176462,0.862,555.53,555.39,0.29828061]
[1741557179575,0.862,555.53,555.4,0.29799316]
[1741557179876,0.862,555.53,555.41,0.29799316]
[1741557180070,0.862,555.53,555.39,0.29799316]
[1741557180275,0.862,555.53,555.4,0.29799316]
[1741557180475,0.862,555.53,555.41,0.29799316]
[1741557180670,0.862,555.53,555.39,0.29799316]
[1741557180975,0.862,555.53,555.38,0.36011379]
[1741557181168,0.862,555.53,555.39,0.29798159]
[1741557181373,0.862,555.53,555.4,0.36010082]
[1741557181569,0.862,555.53,555.41,0.29798159]
[1741557181874,0.862,555.53,555.41,0.65807593]
[1741557182075,0.862,555.53,555.42,0.29798159]
[1741557185384,0.862,555.53,555.43,0.36008137]
[1741557185586,0.862,555.53,555.44,0.29798159]
[1741557186186,0.862,555.53,555.43,0.36008137]
[1741557186387,0.862,555.53,555.44,0.29793806]
[1741557186588,0.862,555.53,555.45,0.36006841]
[1741557186887,0.862,555.53,555.46,0.29793806]
[1741557187481,0.862,555.53,555.46,0.65799999]
[1741557187788,0.862,555.53,555.47,0.29793806]
[1741557194295,0.862,555.53,555.48,0.36004896]
[1741557194488,0.862,555.53,555.49,0.29793806]
[1741557194688,0.862,555.53,555.5,0.360036]
[1741557194896,0.862,555.53,555.51,0.29793806]
[1741557195092,0.862,555.53,555.51,0.65796758]
[1741557195293,0.862,555.53,555.52,0.29793806]
[1741557197194,0.862,555.53,555.52,0.6579611]
[1741557198997,0.862,555.53,555.52,0.65785375]
[1741557201093,0.298,555.8,555.52,0.65785375]
[1741557201295,0.298,555.8,555.53,0.29783071]
[1741557201493,0.298,555.8,555.54,0.36001008]
[1741557201794,0.298,555.8,555.55,0.29783071]
[1741557201993,0.298,555.8,555.56,0.35999712]
[1741557202193,0.298,555.8,555.57,0.29783071]
[1741557202394,0.298,555.8,555.58,0.35998416]
[1741557202600,0.3130876,556.09,555.59,0.29783071]
[1741557202799,0.3130876,556.09,555.6,0.3599712]
[1741557203099,0.3130876,556.09,555.61,0.29783071]
[1741557203697,2.86611774,556.45,555.61,0.29783071]
[1741557203896,0.3129426,556.1,555.61,0.29783071]
[1741557204299,0.718,556.09,555.61,0.29783071]
[1741557204999,1.03099749,556.09,555.61,0.29783071]
[1741557205399,1.03099749,556.09,555.6,0.3599712]
[1741557205599,1.03099749,556.09,555.61,0.29782332]
[1741557205800,0.298,556.08,555.61,0.29782332]
[1741557208394,0.298,556.08,555.61,0.65778804]
[1741557208600,0.298,556.08,555.62,0.29782332]
[1741557213005,0.298,556.08,555.63,0.35995176]
[1741557213201,0.298,556.08,555.64,0.29782332]
[1741557213403,0.298,556.08,555.65,0.35993881]
[1741557213602,0.298,556.08,555.66,0.29782332]
[1741557213803,0.298,556.08,555.67,0.35992585]
[1741557214003,0.298,556.08,555.68,0.29782332]
[1741557214199,0.298,556.08,555.69,0.3599129]
[1741557214407,0.298,556.08,555.7,0.29782332]
[1741557214608,0.298,556.08,555.71,0.35989994]
[1741557214801,0.298,556.08,555.72,0.29782332]
[1741557215304,0.298,556.08,555.72,0.65771679]
[1741557215701,0.298,556.08,555.72,0.35989347]
[1741557215905,0.298,556.08,555.73,0.2977615]
[1741557218804,0.298,556.08,555.73,0.65764849]
[1741557219008,0.298,556.08,555.74,0.2977615]
[1741557219410,1.013,556.08,555.74,0.2977615]
[1741557220208,1.013,556.08,555.75,0.35987404]
[1741557220409,1.013,556.08,555.76,0.2977615]
[1741557230214,1.013,556.08,555.75,0.35987404]
[1741557230512,1.013,556.08,555.76,0.29762291]
[1741557234819,0.715,556.08,555.76,0.29762291]
[1741557239524,0.715,556.08,555.77,0.29775755]
[1741557239719,0.715,556.08,555.76,0.29775755]
[1741557239921,0.715,556.08,555.77,0.29775755]
[1741557240121,0.715,556.08,555.76,0.29775755]
[1741557241120,0.715,556.08,555.77,0.29776181]
[1741557241425,0.715,556.08,555.78,0.29776181]
[1741557241724,0.298,556.09,555.79,0.29776181]
[1741557241923,0.298,556.09,555.8,0.29776181]
[1741557242121,0.298,556.09,555.76,0.29776181]
[1741557242322,0.298,556.09,555.77,0.29776181]
[1741557242524,0.298,556.09,555.76,0.29776181]
[1741557244927,0.559,556.08,555.76,0.29776181]
[1741557246223,0.559,556.08,555.75,0.35987404]
[1741557246427,0.559,556.08,555.76,0.2977679]
[1741557248929,0.559,556.08,555.77,0.29775742]
[1741557249130,0.559,556.08,555.76,0.29775742]
[1741557249326,0.559,556.08,555.77,0.29775742]
[1741557249527,0.559,556.08,555.76,0.29775742]
[1741557249734,0.559,556.08,555.77,0.29775742]
[1741557249933,0.559,556.08,555.4,2.7464089]
[1741557249934,0.559,556.08,555.78,0.35985461]
[1741557250125,0.559,556.08,555.79,0.29775742]
[1741557250328,0.559,556.08,555.8,0.35984166]
[1741557250532,0.559,556.08,555.81,0.29775742]
[1741557250731,0.559,556.08,555.82,0.35982872]
[1741557250934,0.559,556.08,555.83,0.29775742]
[1741557251134,0.559,556.08,555.84,0.35981577]
[1741557251333,0.559,556.08,555.85,0.29775742]
[1741557251529,0.559,556.08,555.86,0.35980282]
[1741557251729,0.559,556.08,555.87,0.29775742]
[1741557251933,0.559,556.08,555.88,0.35978988]
[1741557252133,0.559,556.08,555.89,0.29775742]
[1741557252530,0.559,556.08,555.9,0.35977693]
[1741557252737,0.559,556.08,555.91,0.29775742]
[1741557252938,0.559,556.08,555.92,0.35976399]
[1741557253132,0.559,556.08,555.93,0.29775742]
[1741557253438,0.559,556.08,555.94,0.35975105]
[1741557253634,0.559,556.08,555.95,0.29775742]
[1741557253839,0.559,556.08,555.96,0.35973811]
[1741557254037,0.559,556.08,555.97,0.29775742]
[1741557254232,0.559,556.08,555.98,0.35972516]
[1741557254432,0.559,556.08,555.99,0.29775742]
[1741557254836,0.559,556.08,556.0,0.35971223]
[1741557255045,0.559,556.08,556.01,0.29775742]
[1741557255233,0.559,556.08,556.02,0.35969929]
[1741557255441,0.559,556.08,556.03,0.29775742]
[1741557255740,0.559,556.08,556.04,0.35968635]
[1741557255940,0.559,556.08,556.05,0.29775742]
[1741557256441,0.559,556.08,556.05,0.6574373]
[1741557256636,0.559,556.08,556.06,0.29775742]
[1741557257340,0.559,556.08,556.07,0.35966694]
[1741557257540,0.559,556.08,556.07,0.65742436]
[1741557264542,0.559,556.08,556.07,0.35966694]
[1741557264848,0.559,556.08,556.07,0.65717461]
[1741557266449,0.559,556.08,556.07,0.35966694]
[1741557266649,0.559,556.08,556.07,0.65711494]
[1741557268149,0.298,556.4,556.07,0.65711494]
[1741557268349,0.298,556.4,556.08,0.29752332]
[1741557268644,0.298,556.4,556.09,0.35965401]
[1741557268850,0.298,556.4,556.1,0.29752332]
[1741557269147,0.298,556.4,556.11,0.35964107]
[1741557269350,0.298,556.4,556.12,0.29752332]
[1741557269850,0.298,556.4,556.13,0.35962814]
[1741557270250,0.298,556.4,556.14,0.29752031]
[1741557270450,0.298,556.4,556.15,0.35961521]
[1741557270751,0.298,556.4,556.16,0.29752031]
[1741557270952,0.298,556.4,556.16,0.65712905]
[1741557271151,0.298,556.4,556.17,0.29752031]
[1741557273546,0.298,556.4,556.17,0.65712258]
[1741557273748,0.298,556.4,556.18,0.29752031]
[1741557273949,0.298,556.4,556.19,0.35958934]
[1741557274155,0.298,556.4,556.2,0.29752031]
[1741557274756,0.298,556.4,556.2,0.65710319]
[1741557274958,0.298,556.4,556.21,0.29752031]
[1741557275555,0.298,556.4,556.2,0.35958288]
[1741557275752,0.298,556.4,556.21,0.29750435]
[1741557286963,0.298,556.4,556.22,0.29750376]
[1741557287262,0.298,556.4,556.23,0.29750376]
[1741557287460,0.298,556.4,556.21,0.29750376]
[1741557287658,0.298,556.4,556.22,0.29750376]
[1741557287962,0.298,556.4,556.23,0.29750376]
[1741557288461,0.298,556.4,556.24,0.29750376]
[1741557288657,0.298,556.4,556.21,0.29750376]
[1741557297162,0.817,556.47,556.21,0.65708017]
[1741557297366,0.817,556.47,556.22,0.29750376]
[1741557297566,0.817,556.47,556.23,0.35956348]
[1741557297765,0.817,556.47,556.24,0.29750376]
[1741557298065,0.817,556.47,556.25,0.35955056]
[1741557298267,0.817,556.47,556.26,0.29750376]
[1741557298465,0.817,556.47,556.27,0.35953763]
[1741557298662,0.817,556.47,556.28,0.29750376]
[1741557298959,0.817,556.47,556.29,0.3595247]
[1741557299165,0.817,556.47,556.3,0.29750376]
[1741557299466,0.31265582,556.81,556.3,0.29750376]
[1741557299668,0.31265582,556.81,556.31,0.35951178]
[1741557299969,0.31254771,556.82,556.32,0.29742537]
[1741557300268,0.298,556.8,556.32,0.29742537]
[1741557301265,0.298,556.8,556.33,0.29740562]
[1741557301465,0.298,556.8,556.34,0.35949239]
[1741557301665,0.298,556.8,556.35,0.29740562]
[1741557301869,0.298,556.8,556.36,0.35947947]
[1741557302069,0.298,556.8,556.37,0.29740562]
[1741557302270,0.298,556.8,556.37,0.65687863]
[1741557302571,0.715,556.79,556.38,0.29740562]
[1741557302770,0.715,556.79,556.37,0.35947301]
[1741557302967,0.715,556.79,556.38,0.29740761]
[1741557306577,0.715,556.79,556.37,0.35947301]
[1741557306871,0.715,556.79,556.38,0.29741319]
[1741557309378,4.26972762,556.78,556.37,0.35947301]
[1741557309579,2.87683237,556.77,556.37,0.35947301]
[1741557309778,2.87683237,556.76,556.37,0.35947301]
[1741557310074,7.48003107,556.75,556.37,0.35947301]
[1741557310280,8.01893513,556.74,556.19,1.34517987]
[1741557310479,8.01893513,556.73,556.2,0.29762938]
[1741557310677,8.0199283,556.72,556.19,1.34517987]
[1741557310875,8.0199283,556.71,556.19,1.34517987]